fUST/lending_fUST_20250725
["ID","MTS","AMOUNT","RATE_DAILY","PERIOD"]
[374670204,1753405883062,-1082.99,0.00021133,2]
[374670205,1753405883074,-1185.33,0.00021133,2]
[374670206,1753405883084,-1580.14,0.00021133,2]
[374670207,1753405883094,-460.0,0.00021133,2]
[374670208,1753405883104,-460.0,0.00021133,2]
[374670209,1753405883116,-842.02,0.00021133,2]
[374670210,1753405883127,-460.0,0.00021133,2]
[374670211,1753405883144,-630.13,0.00021133,2]
[374670212,1753405883155,-460.0,0.00021133,2]
[374670213,1753405883164,-825.34,0.00021133,2]
[374670214,1753405883174,-1609.8,0.00021133,2]
[374670215,1753405883183,-3000.0,0.0002114,2]
[374670216,1753405883194,-3000.0,0.0002115,2]
[374670217,1753405883203,-851.14,0.00021154,2]
[374670218,1753405883213,-460.0,0.00021154,2]
[374670219,1753405883223,-460.0,0.00021154,2]
[374670220,1753405883233,-460.0,0.00021154,2]
[374670221,1753405883243,-1129.03,0.00021154,2]
[374670222,1753405883253,-460.0,0.00021154,2]
[374670223,1753405883263,-3000.0,0.0002116,2]
[374670224,1753405883272,-3000.0,0.0002117,2]
[374670225,1753405883282,-460.0,0.00021176,2]
[374670226,1753405883291,-460.0,0.00021176,2]
[374670227,1753405883301,-634.74,0.00021176,2]
[374670228,1753405883311,-460.0,0.00021176,2]
[374670229,1753405883320,-542.679909,0.00021176,2]
[374670230,1753405883329,-542.679909,0.00021176,2]
[374670231,1753405883340,-1638.24,0.00021176,2]
[374670232,1753405883350,-1280.01,0.00021176,2]
[374670233,1753405883360,-186.193279,0.00021176,2]
[374670234,1753405883370,-186.193279,0.00021176,2]
[374670235,1753405883380,-545.16,0.00021176,2]
[374670236,1753405883390,-516.35,0.00021176,2]
[374670237,1753405883400,-632.2,0.00021176,2]
[374670238,1753405883409,-1029.2,0.00021176,2]
[374670239,1753405883418,-6996.8,0.00021176,2]
[374670240,1753405883428,-2763.92,0.00021176,2]
[374670241,1753405883437,-3000.0,0.0002118,2]
[374670242,1753405883447,-3000.0,0.0002119,2]
[374670243,1753405883457,-159.672205,0.0002119,2]
[374670244,1753405883467,-159.672205,0.0002119,2]
[374670245,1753405883476,-3000.0,0.000212,2]
[374670246,1753405883486,-3000.0,0.0002121,2]
[374670247,1753405883496,-4359.35292185,0.0002121,4]
[374670248,1753405883505,-179.82017982,0.00021214,2]
[374670249,1753405883515,-3000.0,0.0002122,2]
[374670250,1753405883525,-3000.0,0.0002123,2]
[374670251,1753405883535,-3000.0,0.0002124,2]
[374670252,1753405883544,-3000.0,0.0002125,2]
[374670253,1753405883555,-151.0,0.00021252,2]
[374670254,1753405883564,-470.3,0.00021255,2]
[374670255,1753405883574,-3000.0,0.0002126,2]
[374670256,1753405883584,-319.1862312,0.0002126,2]
[374670257,1753405883594,-3000.0,0.0002127,2]
[374670258,1753405883604,-797.25,0.00021274,2]
[374670259,1753405883613,-1339.86,0.00021274,2]
[374670260,1753405883623,-1455.26,0.00021274,2]
[374670261,1753405883633,-646.53,0.00021274,2]
[374670262,1753405883642,-689.47,0.00021274,2]
[374670263,1753405883652,-1116.98,0.00021274,2]
[374670264,1753405883662,-2881.55,0.00021274,2]
[374670265,1753405883672,-4319.45,0.00021274,2]
[374670266,1753405883681,-4169.87,0.00021274,2]
[374670267,1753405883691,-505.17170247,0.00021274,2]
[374670268,1753405883700,-2789.02,0.00021274,2]
[374670269,1753405883710,-1289.13,0.00021274,2]
[374670270,1753405883719,-460.0,0.00021276,2]
[374670271,1753405883729,-301.6974132,0.00021276,2]
[374670272,1753405883738,-460.0,0.00021276,2]
[374670273,1753405883748,-552.15,0.00021276,2]
[374670274,1753405883757,-676.46,0.00021276,2]
[374670275,1753405883767,-904.33,0.00021276,2]
[374670276,1753405883776,-1156.4,0.00021276,2]
[374670277,1753405883786,-500.81,0.00021276,2]
[374670278,1753405883796,-680.32,0.00021276,2]
[374670279,1753405883805,-460.0,0.00021276,2]
[374670280,1753405883815,-1029.72,0.00021276,2]
[374670281,1753405883825,-723.77,0.00021276,2]
[374670282,1753405883833,-460.0,0.00021276,2]
[374670283,1753405883843,-770.55,0.00021276,2]
[374670284,1753405883853,-1464.77,0.00021276,2]
[374670285,1753405883862,-1451.71,0.00021276,2]
[374670286,1753405883871,-460.0,0.00021276,2]
[374670287,1753405883881,-600.06,0.00021276,2]
[374670288,1753405883891,-460.0,0.00021276,2]
[374670289,1753405883902,-649.29,0.00021276,2]
[374670290,1753405883912,-632.98,0.00021276,2]
[374670291,1753405883921,-700.52,0.00021276,2]
[374670292,1753405883933,-570.48,0.00021276,2]
[374670293,1753405883943,-1352.89,0.00021276,2]
[374670294,1753405883952,-1205.96,0.00021276,2]
[374670295,1753405883962,-696.97,0.00021276,2]
[374670296,1753405883971,-542.27,0.00021276,2]
[374670297,1753405883981,-625.29,0.00021276,2]
[374670298,1753405883991,-151.0,0.00021276,2]
[374670299,1753405884001,-460.0,0.00021277,2]
[374670300,1753405884010,-460.0,0.00021277,2]
[374670301,1753405884020,-2698.01,0.00021277,2]
[374670302,1753405884029,-550.66,0.00021277,2]
[374670303,1753405884039,-1284.55,0.00021277,2]
[374670304,1753405884048,-5026.12,0.00021277,2]
[374670305,1753405884058,-3778.26,0.00021277,2]
[374670306,1753405884070,-516.32,0.00021277,2]
[374670307,1753405884081,-388.9331166,0.00021278,2]
[374670308,1753405884092,-460.0,0.00021278,2]
[374670309,1753405884102,-614.02,0.00021278,2]
[374670310,1753405884112,-217.502981,0.00021278,2]
[374670311,1753405884121,-217.502981,0.00021278,2]
[374670312,1753405884131,-878.92,0.00021278,2]
[374670313,1753405884140,-843.8,0.00021278,2]
[374670314,1753405884151,-3000.0,0.0002128,2]
[374670315,1753405884160,-485.64,0.00021284,2]
[374670316,1753405884169,-151.0,0.00021284,2]
[374670317,1753405884179,-151.0,0.00021284,2]
[374670318,1753405884189,-151.0,0.00021284,2]
[374670319,1753405884199,-1979.39,0.00021284,2]
[374670320,1753405884208,-631.28,0.00021284,2]
[374670321,1753405884217,-460.0,0.00021284,2]
[374670322,1753405884227,-942.95,0.00021284,2]
[374670323,1753405884236,-460.0,0.00021284,2]
[374670324,1753405884246,-460.0,0.00021284,2]
[374670325,1753405884255,-497.3,0.00021284,2]
[374670326,1753405884264,-1681.11,0.00021284,2]
[374670327,1753405884274,-675.8,0.00021284,2]
[374670328,1753405884283,-460.0,0.00021284,2]
[374670329,1753405884292,-756.57,0.00021284,2]
[374670330,1753405884301,-821.38,0.00021284,2]
[374670331,1753405884311,-526.09,0.00021284,2]
[374670332,1753405884320,-759.71,0.00021284,2]
[374670333,1753405884331,-524.24,0.00021284,2]
[374670334,1753405884342,-460.0,0.00021284,2]
[374670335,1753405884352,-738.71,0.00021284,2]
[374670336,1753405884361,-1149.0,0.00021285,2]
[374670337,1753405884371,-1079.0,0.00021285,2]
[374670338,1753405884380,-793.28,0.00021285,2]
[374670339,1753405884390,-460.0,0.00021287,2]
[374670340,1753405884400,-546.94,0.00021287,2]
[374670341,1753405884409,-460.0,0.00021287,2]
[374670342,1753405884420,-548.26,0.00021287,2]
[374670343,1753405884430,-460.0,0.00021287,2]
[374670344,1753405884439,-460.0,0.00021287,2]
[374670345,1753405884449,-932.05,0.00021287,2]
[374670346,1753405884458,-460.0,0.00021287,2]
[374670347,1753405884468,-460.0,0.00021287,2]
[374670348,1753405884478,-151.0,0.00021287,2]
[374670349,1753405884487,-460.0,0.00021287,2]
[374670350,1753405884497,-460.0,0.00021287,2]
[374670351,1753405884506,-698.6,0.00021287,2]
[374670352,1753405884516,-206.1693,0.00021287,2]
[374670353,1753405884526,-337.648918,0.00021287,2]
[374670354,1753405884536,-206.1693,0.00021287,2]
[374670355,1753405884546,-337.648918,0.00021287,2]
[374670356,1753405884556,-993.5,0.00021287,2]
[374670357,1753405884567,-362.441595,0.00021287,2]
[374670358,1753405884576,-646.526861,0.00021287,2]
[374670359,1753405884586,-646.526861,0.00021287,2]
[374670360,1753405884595,-362.441595,0.00021287,2]
[374670361,1753405884605,-3000.0,0.0002129,2]
[374670362,1753405884616,-4359.35292185,0.00021348,5]
[374670363,1753405884628,-859.2792965,0.00021397,2]
[374670364,1753405884639,-839.14,0.00021403,2]
[374670365,1753405884649,-891.45,0.00021403,2]
[374670366,1753405884660,-3004.04,0.00021403,2]
[374670367,1753405884670,-808.95,0.00021403,2]
[374670368,1753405884681,-664.13,0.00021405,2]
[374670369,1753405884692,-8109.86,0.00021405,2]
[374670370,1753405884703,-4205.78,0.00021405,2]
[374670371,1753405884712,-460.0,0.00021405,2]
[374670372,1753405884722,-828.63,0.00021405,2]
[374670373,1753405884732,-460.0,0.00021405,2]
[374670374,1753405884741,-1045.24,0.00021405,2]
[374670375,1753405884752,-876.12,0.00021405,2]
[374670376,1753405884762,-3080.87,0.00021405,2]
[374670377,1753405884771,-630.25,0.00021405,2]
[374670378,1753405884781,-2623.82,0.00021405,2]
[374670379,1753405884791,-1224.91,0.00021405,2]
[374670380,1753405884801,-729.01,0.00021405,2]
[374670381,1753405884810,-829.26,0.00021407,2]
[374670382,1753405884820,-641.73,0.00021407,2]
[374670383,1753405884829,-243.92918106,0.00021407,2]
[374670384,1753405884839,-797.44,0.00021407,2]
[374670385,1753405884849,-1009.95,0.00021407,2]
[374670386,1753405884858,-1461.37,0.00021407,2]
[374670387,1753405884868,-873.27,0.00021407,2]
[374670388,1753405884877,-720.64,0.00021407,2]
[374670389,1753405884887,-460.0,0.00021407,2]
[374670390,1753405884896,-478.9,0.00021407,2]
[374670391,1753405884906,-2863.12,0.00021407,2]
[374670392,1753405884916,-570.91,0.00021407,2]
[374670393,1753405884925,-460.0,0.00021407,2]
[374670394,1753405884935,-1139.2,0.00021407,2]
[374670395,1753405884945,-576.02,0.00021407,2]
[374670396,1753405884954,-831.56,0.00021407,2]
[374670397,1753405884964,-1082.99,0.00021407,2]
[374670398,1753405884973,-1185.33,0.00021407,2]
[374670399,1753405884983,-1580.14,0.00021407,2]
[374670400,1753405884993,-460.0,0.00021407,2]
[374670401,1753405885003,-842.02,0.00021407,2]
[374670402,1753405885012,-455.59220239,0.00021407,2]
[374670403,1753405885022,-630.13,0.00021407,2]
[374670404,1753405885032,-460.0,0.00021407,2]
[374670405,1753405885042,-825.34,0.00021407,2]
[374670406,1753405885052,-1609.8,0.00021407,2]
[374670407,1753405885062,-851.14,0.00021428,2]
[374670408,1753405885074,-460.0,0.00021428,2]
[374670409,1753405885084,-460.0,0.00021428,2]
[374670410,1753405885100,-460.0,0.00021428,2]
[374670411,1753405885110,-1129.03,0.00021428,2]
[374670412,1753405885121,-460.0,0.00021428,2]
[374670413,1753405885132,-3000.0,0.0002143,2]
[374670414,1753405885141,-460.0,0.0002145,2]
[374670415,1753405885152,-634.74,0.0002145,2]
[374670416,1753405885163,-170.561542,0.0002145,2]
[374670417,1753405885173,-170.561542,0.0002145,2]
[374670418,1753405885182,-460.0,0.0002145,2]
[374670419,1753405885193,-1638.24,0.0002145,2]
[374670420,1753405885203,-1280.01,0.0002145,2]
[374670421,1753405885212,-545.16,0.0002145,2]
[374670422,1753405885383,-516.35,0.0002145,2]
[374670423,1753405885394,-632.2,0.0002145,2]
[374670424,1753405885404,-1029.2,0.0002145,2]
[374670425,1753405885414,-6996.8,0.0002145,2]
[374670426,1753405885423,-2763.92,0.0002145,2]
[374670427,1753405885433,-560.0,0.00021468,2]
[374670428,1753405885443,-4359.35292185,0.00021486,5]
[374670429,1753405885454,-2217.49909099,0.000215,2]
[374670430,1753405885464,-151.0,0.000215,2]
[374670431,1753405885475,-214.9,0.000215,2]
[374670432,1753405885486,-214.9,0.000215,2]
[374670433,1753405885495,-500.0,0.00021508,2]
[374670434,1753405885508,-187.479922,0.00021521,2]
[374670435,1753405885518,-187.479922,0.00021521,2]
[374670436,1753405885531,-470.3,0.00021529,2]
[374670437,1753405885541,-577.6552115,0.00021534,2]
[374670438,1753405885551,-178.2667198,0.00021534,2]
[374670439,1753405885561,-797.25,0.00021548,2]
[374670440,1753405885571,-151.0,0.00021548,2]
[374670441,1753405885582,-191.267888,0.00021548,2]
[374670442,1753405885593,-232.905966,0.00021548,2]
[374670443,1753405885603,-232.905966,0.00021548,2]
[374670444,1753405885612,-151.0,0.00021548,2]
[374670445,1753405885622,-151.0,0.00021548,2]
[374670446,1753405885631,-151.0,0.00021548,2]
[374670447,1753405885640,-1339.86,0.00021548,2]
[374670448,1753405885650,-1455.26,0.00021548,2]
[374670449,1753405885659,-646.53,0.00021548,2]
[374670450,1753405885668,-689.47,0.00021548,2]
[374670451,1753405885677,-1116.98,0.00021548,2]
[374670452,1753405885687,-2881.55,0.00021548,2]
[374670453,1753405885697,-4319.45,0.00021548,2]
[374670454,1753405885707,-4169.87,0.00021548,2]
[374670455,1753405885717,-2789.02,0.00021548,2]
[374670456,1753405885727,-1289.13,0.00021548,2]
[374670457,1753405885736,-160.14115605,0.0002155,2]
[374670458,1753405885746,-460.0,0.0002155,2]
[374670459,1753405885755,-552.15,0.0002155,2]
[374670460,1753405885765,-676.46,0.0002155,2]
[374670461,1753405885774,-904.33,0.0002155,2]
[374670462,1753405885784,-1156.4,0.0002155,2]
[374670463,1753405885793,-500.81,0.0002155,2]
[374670464,1753405885803,-680.32,0.0002155,2]
[374670465,1753405885813,-460.0,0.0002155,2]
[374670466,1753405885822,-1029.72,0.0002155,2]
[374670467,1753405885832,-723.77,0.0002155,2]
[374670468,1753405885842,-508.38560232,0.0002155,2]
[374670469,1753405885852,-770.55,0.0002155,2]
[374670470,1753405885861,-1464.77,0.0002155,2]
[374670471,1753405885873,-1451.71,0.0002155,2]
[374670472,1753405885884,-460.0,0.0002155,2]
[374670473,1753405885896,-600.06,0.0002155,2]
[374670474,1753405885905,-460.0,0.0002155,2]
[374670475,1753405885915,-649.29,0.0002155,2]
[374670476,1753405885923,-632.98,0.0002155,2]
[374670477,1753405885933,-700.52,0.0002155,2]
[374670478,1753405885943,-570.48,0.0002155,2]
[374670479,1753405885952,-1352.89,0.0002155,2]
[374670480,1753405885961,-1205.96,0.0002155,2]
[374670481,1753405885970,-696.97,0.0002155,2]
[374670482,1753405885980,-542.27,0.0002155,2]
[374670483,1753405885991,-625.29,0.0002155,2]
[374670484,1753405886000,-511.11460237,0.00021551,2]
[374670485,1753405886010,-511.11460237,0.00021551,2]
[374670486,1753405886020,-2698.01,0.00021551,2]
[374670487,1753405886029,-550.66,0.00021551,2]
[374670488,1753405886039,-1284.55,0.00021551,2]
[374670489,1753405886049,-5026.12,0.00021551,2]
[374670490,1753405886058,-3778.26,0.00021551,2]
[374670491,1753405886071,-516.32,0.00021551,2]
[374670492,1753405886081,-460.0,0.00021552,2]
[374670493,1753405886091,-614.02,0.00021552,2]
[374670494,1753405886101,-878.92,0.00021552,2]
[374670495,1753405886111,-843.8,0.00021552,2]
[374670496,1753405886122,-485.64,0.00021558,2]
[374670497,1753405886131,-1979.39,0.00021558,2]
[374670498,1753405886141,-631.28,0.00021558,2]
[374670499,1753405886151,-460.0,0.00021558,2]
[374670500,1753405886161,-942.95,0.00021558,2]
[374670501,1753405886170,-460.0,0.00021558,2]
[374670502,1753405886180,-460.0,0.00021558,2]
[374670503,1753405886188,-497.3,0.00021558,2]
[374670504,1753405886199,-1681.11,0.00021558,2]
[374670505,1753405886209,-675.8,0.00021558,2]
[374670506,1753405886218,-460.0,0.00021558,2]
[374670507,1753405886227,-756.57,0.00021558,2]
[374670508,1753405886238,-821.38,0.00021558,2]
[374670509,1753405886249,-526.09,0.00021558,2]
[374670510,1753405886258,-759.71,0.00021558,2]
[374670511,1753405886269,-524.24,0.00021558,2]
[374670512,1753405886280,-460.0,0.00021558,2]
[374670513,1753405886290,-738.71,0.00021558,2]
[374670514,1753405886299,-1149.0,0.00021559,2]
[374670515,1753405886309,-1079.0,0.00021559,2]
[374670516,1753405886319,-793.28,0.00021559,2]
[374670517,1753405886329,-495.53316289,0.00021561,2]
[374670518,1753405886340,-546.94,0.00021561,2]
[374670519,1753405886350,-177.44678119,0.00021561,2]
[374670520,1753405886359,-548.26,0.00021561,2]
[374670521,1753405886369,-460.0,0.00021561,2]
[374670522,1753405886379,-460.0,0.00021561,2]
[374670523,1753405886390,-932.05,0.00021561,2]
[374670524,1753405886402,-460.0,0.00021561,2]
[374670525,1753405886421,-460.0,0.00021561,2]
[374670526,1753405886433,-460.0,0.00021561,2]
[374670527,1753405886443,-460.0,0.00021561,2]
[374670528,1753405886456,-698.6,0.00021561,2]
[374670529,1753405886468,-993.5,0.00021561,2]
[374670530,1753405886479,-2500.0,0.00021564,2]
[374670531,1753405886490,-4359.35292185,0.00021624,5]
[374670532,1753405886501,-839.14,0.00021677,2]
[374670533,1753405886511,-891.45,0.00021677,2]
[374670534,1753405886522,-3004.04,0.00021677,2]
[374670535,1753405886533,-808.95,0.00021677,2]
[374670536,1753405886543,-664.13,0.00021679,2]
[374670537,1753405886554,-8109.86,0.00021679,2]
[374670538,1753405886565,-4205.78,0.00021679,2]
[374670539,1753405886575,-298.28946616,0.00021679,2]
[374670540,1753405886588,-828.63,0.00021679,2]
[374670541,1753405886598,-460.0,0.00021679,2]
[374670542,1753405886608,-1045.24,0.00021679,2]
[374670543,1753405886618,-876.12,0.00021679,2]
[374670544,1753405886628,-3080.87,0.00021679,2]
[374670545,1753405886638,-630.25,0.00021679,2]
[374670546,1753405886648,-2623.82,0.00021679,2]
[374670547,1753405886658,-1224.91,0.00021679,2]
[374670548,1753405886668,-729.01,0.00021679,2]
[374670549,1753405886678,-829.26,0.00021681,2]
[374670550,1753405886688,-641.73,0.00021681,2]
[374670551,1753405886698,-797.44,0.00021681,2]
[374670552,1753405886708,-1009.95,0.00021681,2]
[374670553,1753405886717,-1461.37,0.00021681,2]
[374670554,1753405886727,-873.27,0.00021681,2]
[374670555,1753405886737,-720.64,0.00021681,2]
[374670556,1753405886747,-460.0,0.00021681,2]
[374670557,1753405886757,-478.9,0.00021681,2]
[374670558,1753405886767,-2863.12,0.00021681,2]
[374670559,1753405886776,-570.91,0.00021681,2]
[374670560,1753405886787,-460.0,0.00021681,2]
[374670561,1753405886796,-1139.2,0.00021681,2]
[374670562,1753405886805,-576.02,0.00021681,2]
[374670563,1753405886816,-542.679909,0.00021681,2]
[374670564,1753405886826,-542.679909,0.00021681,2]
[374670565,1753405886835,-831.56,0.00021681,2]
[374670566,1753405886848,-1082.99,0.00021681,2]
[374670567,1753405886858,-1185.33,0.00021681,2]
[374670568,1753405886868,-1580.14,0.00021681,2]
[374670569,1753405886878,-186.193279,0.00021681,2]
[374670570,1753405886889,-186.193277,0.00021681,2]
[374670571,1753405886900,-460.0,0.00021681,2]
[374670572,1753405886910,-842.02,0.00021681,2]
[374670573,1753405886919,-630.13,0.00021681,2]
[374670574,1753405886929,-460.0,0.00021681,2]
[374670575,1753405886938,-825.34,0.00021681,2]
[374670576,1753405886949,-1609.8,0.00021681,2]
[374670577,1753405886959,-851.14,0.00021702,2]
[374670578,1753405886969,-460.0,0.00021702,2]
[374670579,1753405886979,-460.0,0.00021702,2]
[374670580,1753405886990,-460.0,0.00021702,2]
[374670581,1753405887000,-1129.03,0.00021702,2]
[374670582,1753405887009,-460.0,0.00021702,2]
[374670583,1753405887019,-460.0,0.00021724,2]
[374670584,1753405887030,-634.74,0.00021724,2]
[374670585,1753405887039,-460.0,0.00021724,2]
[374670586,1753405887049,-1638.24,0.00021724,2]
[374670587,1753405887059,-1280.01,0.00021724,2]
[374670588,1753405887070,-545.16,0.00021724,2]
[374670589,1753405887082,-516.35,0.00021724,2]
[374670590,1753405887093,-632.2,0.00021724,2]
[374670591,1753405887104,-1029.2,0.00021724,2]
[374670592,1753405887115,-6996.8,0.00021724,2]
[374670593,1753405887125,-2763.92,0.00021724,2]
[374670594,1753405887135,-877.72466876,0.00021739,2]
[374670595,1753405887144,-4359.35292185,0.00021762,5]
[374670596,1753405887156,-470.3,0.00021803,2]
[374670597,1753405887166,-797.25,0.00021822,2]
[374670598,1753405887176,-159.672205,0.00021822,2]
[374670599,1753405887185,-159.672205,0.00021822,2]
[374670600,1753405887195,-1339.86,0.00021822,2]
[374670601,1753405887205,-1455.26,0.00021822,2]
[374670602,1753405887215,-646.53,0.00021822,2]
[374670603,1753405887224,-689.47,0.00021822,2]
[374670604,1753405887234,-1116.98,0.00021822,2]
[374670605,1753405887244,-2881.55,0.00021822,2]
[374670606,1753405887254,-4319.45,0.00021822,2]
[374670607,1753405887263,-4169.87,0.00021822,2]
[374670608,1753405887274,-2789.02,0.00021822,2]
[374670609,1753405887285,-1289.13,0.00021822,2]
[374670610,1753405887295,-460.0,0.00021824,2]
[374670611,1753405887306,-552.15,0.00021824,2]
[374670612,1753405887316,-676.46,0.00021824,2]
[374670613,1753405887327,-904.33,0.00021824,2]
[374670614,1753405887338,-1156.4,0.00021824,2]
[374670615,1753405887348,-500.81,0.00021824,2]
[374670616,1753405887358,-680.32,0.00021824,2]
[374670617,1753405887368,-460.0,0.00021824,2]
[374670618,1753405887379,-1029.72,0.00021824,2]
[374670619,1753405887389,-723.77,0.00021824,2]
[374670620,1753405887400,-770.55,0.00021824,2]
[374670621,1753405887410,-1464.77,0.00021824,2]
[374670622,1753405887420,-1451.71,0.00021824,2]
[374670623,1753405887431,-460.0,0.00021824,2]
[374670624,1753405887441,-600.06,0.00021824,2]
[374670625,1753405887451,-460.0,0.00021824,2]
[374670626,1753405887461,-649.29,0.00021824,2]
[374670627,1753405887471,-632.98,0.00021824,2]
[374670628,1753405887483,-700.52,0.00021824,2]
[374670629,1753405887494,-570.48,0.00021824,2]
[374670630,1753405887505,-1352.89,0.00021824,2]
[374670631,1753405887515,-1205.96,0.00021824,2]
[374670632,1753405887525,-696.97,0.00021824,2]
[374670633,1753405887534,-542.27,0.00021824,2]
[374670634,1753405887544,-625.29,0.00021824,2]
[374670635,1753405887554,-267.144828,0.00021824,2]
[374670636,1753405887563,-2698.01,0.00021825,2]
[374670637,1753405887572,-550.66,0.00021825,2]
[374670638,1753405887582,-1284.55,0.00021825,2]
[374670639,1753405887594,-217.502981,0.00021825,2]
[374670640,1753405887604,-217.502981,0.00021825,2]
[374670641,1753405887613,-5026.12,0.00021825,2]
[374670642,1753405887623,-3778.26,0.00021825,2]
[374670643,1753405887633,-516.32,0.00021825,2]
[374670644,1753405887643,-334.24101923,0.00021826,2]
[374670645,1753405887652,-614.02,0.00021826,2]
[374670646,1753405887662,-878.92,0.00021826,2]
[374670647,1753405887673,-843.8,0.00021826,2]
[374670648,1753405887682,-485.64,0.00021832,2]
[374670649,1753405887692,-1979.39,0.00021832,2]
[374670650,1753405887702,-631.28,0.00021832,2]
[374670651,1753405887712,-460.0,0.00021832,2]
[374670652,1753405887722,-942.95,0.00021832,2]
[374670653,1753405887732,-460.0,0.00021832,2]
[374670654,1753405887741,-457.37897851,0.00021832,2]
[374670655,1753405887751,-497.3,0.00021832,2]
[374670656,1753405887763,-1681.11,0.00021832,2]
[374670657,1753405887772,-675.8,0.00021832,2]
[374670658,1753405887782,-460.0,0.00021832,2]
[374670659,1753405887791,-756.57,0.00021832,2]
[374670660,1753405887801,-821.38,0.00021832,2]
[374670661,1753405887810,-526.09,0.00021832,2]
[374670662,1753405887820,-759.71,0.00021832,2]
[374670663,1753405887830,-524.24,0.00021832,2]
[374670664,1753405887843,-460.0,0.00021832,2]
[374670665,1753405888060,-738.71,0.00021832,2]
[374670666,1753405888071,-1149.0,0.00021833,2]
[374670667,1753405888082,-1079.0,0.00021833,2]
[374670668,1753405888092,-151.0,0.00021835,2]
[374670669,1753405888102,-546.94,0.00021835,2]
[374670670,1753405888111,-548.26,0.00021835,2]
[374670671,1753405888121,-460.0,0.00021835,2]
[374670672,1753405888130,-460.0,0.00021835,2]
[374670673,1753405888143,-932.05,0.00021835,2]
[374670674,1753405888153,-460.0,0.00021835,2]
[374670675,1753405888163,-482.62687916,0.00021835,2]
[374670676,1753405888173,-205.23222555,0.00021835,2]
[374670677,1753405888182,-460.0,0.00021835,2]
[374670678,1753405888192,-698.6,0.00021835,2]
[374670679,1753405888202,-993.5,0.00021835,2]
[374670680,1753405888211,-4359.35292185,0.000219,6]
[374670681,1753405888220,-500.0,0.00021917,2]
[374670682,1753405888230,-500.0,0.00021917,2]
[374670683,1753405888240,-500.0,0.00021917,2]
[374670684,1753405888250,-500.0,0.00021917,2]
[374670685,1753405888260,-500.0,0.00021917,2]
[374670686,1753405888270,-500.0,0.00021917,2]
[374670687,1753405888280,-500.0,0.00021917,2]
[374670688,1753405888291,-573.1,0.00021917,2]
[374670689,1753405888300,-151.0,0.00021917,2]
[374670690,1753405888311,-206.1693,0.00021917,2]
[374670691,1753405888320,-337.648918,0.00021917,2]
[374670692,1753405888330,-206.1693,0.00021917,2]
[374670693,1753405888342,-337.648918,0.00021917,2]
[374670694,1753405888352,-362.441595,0.00021917,2]
[374670695,1753405888362,-646.526861,0.00021917,2]
[374670696,1753405888372,-646.526861,0.00021917,2]
[374670697,1753405888383,-362.441595,0.00021917,2]
[374670698,1753405888392,-500.0,0.00021917,2]
[374670699,1753405888403,-500.0,0.00021917,2]
[374670700,1753405888412,-500.0,0.00021917,2]
[374670701,1753405888422,-500.0,0.00021917,2]
[374670702,1753405888432,-500.0,0.00021917,2]
[374670703,1753405888441,-500.0,0.00021917,2]